bitfinex/quotes_ETHUSD_20241223
["timestamp","ask_amount","ask_price","bid_price","bid_amount"]
[1734918779826,3.0,3276.5,3275.1,1.4238]
[1734918779827,3.05243,3276.1,3275.1,1.4238]
[1734918780029,3.05243,3276.1,3275.1,2.03585465]
[1734918780599,1.4859,3276.7,3275.2,1.3818]
[1734918780889,3.05199,3276.6,3275.5,0.55]
[1734918781716,3.05213,3276.4,3275.5,0.55]
[1734918781916,3.05213,3276.4,3275.6,0.19318]
[1734918782145,3.05213,3276.4,3275.7,1.3903]
[1734918782351,3.05188,3276.7,3275.7,1.3903]
[1734918782516,3.05089,3277.8,3276.3,1.3903]
[1734918782696,0.305089,3277.7,3276.4,0.55]
[1734918782891,1.5111,3278.0,3276.5,1.3903]
[1734918783203,4.90353699,3278.2,3277.1,3.0]
[1734918783397,4.90353699,3278.2,3277.2,1.3903]
[1734918783599,3.05055,3278.1,3277.2,1.3903]
[1734918783842,3.05073,3277.9,3277.2,1.3903]
[1734918785050,3.05013,3278.6,3277.2,1.3903]
[1734918785345,0.305013,3278.5,3277.4,1.3891]
[1734918785527,1.4148,3279.4,3277.6,1.3891]
[1734918785847,3.04962,3279.1,3278.0,1.3891]
[1734918786044,3.04944,3279.3,3278.1,3.55]
[1734918786247,3.04944,3279.3,3278.3,0.55]
[1734918786454,1.85306699,3279.5,3278.3,0.55]
[1734918786599,1.85306699,3279.5,3278.5,1.5194]
[1734918786800,3.04934,3279.4,3278.5,1.5194]
[1734918786996,1.85306699,3279.5,3278.5,1.5194]
[1734918787245,1.4629,3279.2,3277.2,4.5194]
[1734918787461,3.05085,3277.8,3277.2,1.5194]
[1734918787602,3.05092,3277.7,3277.3,1.22113054]
[1734918787802,3.05111,3277.5,3277.3,1.22113054]
[1734918788718,3.05145,3277.2,3276.8,1.4831]
[1734918788941,3.0512,3277.4,3276.8,1.4831]
[1734918790301,3.0,3277.7,3276.8,1.4831]
[1734918790607,3.05158,3277.0,3276.8,1.4831]
[1734918790948,3.05235,3276.2,3276.0,1.4831]
[1734918791341,3.05259,3275.9,3275.8,1.22113054]
[1734918791543,1.4193,3276.6,3275.8,1.22113054]
[1734918791752,3.05187,3276.7,3275.8,1.22113054]
[1734918791901,3.0,3277.4,3275.9,1.4831]
[1734918792100,3.05185,3276.7,3275.9,1.4831]
[1734918792433,3.05163,3277.0,3275.9,4.4831]
[1734918792604,3.3,3277.3,3275.9,4.4831]
[1734918792800,3.05176,3276.8,3275.9,4.4831]
[1734918793000,3.05176,3276.8,3275.9,1.4831]
[1734918793208,3.05176,3276.8,3275.9,1.69217085]
[1734918793454,3.05138,3277.2,3275.9,1.69217085]
[1734918793757,3.0524,3276.2,3275.9,1.4831]
[1734918793952,3.0,3276.8,3275.9,1.4831]
[1734918794106,3.05206,3276.5,3275.9,1.4831]
[1734918794449,3.05177,3276.8,3275.9,1.4831]
[1734918794621,3.05197,3276.6,3275.9,1.4831]
[1734918794946,3.05176,3276.8,3275.9,1.4831]
[1734918796548,1.4678,3278.0,3276.1,0.55]
[1734918796702,1.4678,3278.0,3276.1,4.9599]
[1734918796905,3.05145,3277.2,3276.3,0.55]
[1734918797739,3.05152,3277.1,3276.3,0.55]
[1734918798925,3.0,3278.0,3276.4,1.4849]
[1734918799272,3.0504,3278.3,3277.2,1.4323]
[1734918799411,3.0504,3278.3,3277.3,1.04823]
[1734918800256,3.0,3278.5,3277.3,1.04823]
[1734918800460,3.0505,3278.2,3277.3,0.55]
[1734918800955,3.05067,3278.0,3277.3,0.55]
[1734918801312,3.0,3278.7,3277.3,0.55]
[1734918801511,3.05057,3278.1,3277.3,0.55]
[1734918801754,3.05057,3278.1,3277.3,0.80810398]
[1734918803064,4.4097,3279.0,3277.2,2.03103981]
[1734918803065,3.0,3278.8,3277.2,1.4323]
[1734918803215,3.0512,3277.4,3277.2,1.4323]
[1734918803414,3.0512,3277.4,3276.1,3.05282637]
[1734918803415,3.05166,3276.9,3276.6,1.4643]
[1734918804119,1.5005,3277.7,3276.6,1.4643]
[1734918804320,3.05141,3277.2,3276.6,1.4643]
[1734918804859,3.05149,3277.1,3276.6,1.4643]
[1734918805075,3.356639,3277.1,3276.6,1.4643]
[1734918805268,3.05185,3276.7,3276.6,1.4643]
[1734918805434,3.05224,3276.3,3275.8,1.5125]
[1734918806465,3.05185,3276.7,3275.8,1.5125]
[1734918806624,3.05267,3275.9,3275.2,1.5]
[1734918806824,3.0,3276.6,3275.2,1.5]
[1734918807164,3.64178535,3276.5,3275.2,1.5]
[1734918807321,3.05315,3275.3,3274.8,1.9963065]
[1734918807519,3.05352,3274.9,3274.8,1.3972]
[1734918807723,3.05352,3274.9,3274.3,1.3972]
[1734918807952,1.4237,3276.0,3274.3,1.3972]
[1734918808171,0.62244822,3275.8,3274.3,1.61619879]
[1734918808318,3.05346,3275.0,3274.3,1.61619879]
[1734918808523,3.05305,3275.5,3274.3,1.61619879]
[1734918808524,3.05301,3275.5,3274.3,1.61619879]
[1734918808727,3.05268,3275.8,3274.3,1.61619879]
[1734918808932,3.05175,3276.9,3274.6,1.24985623]
[1734918808933,4.49005,3276.6,3274.6,1.24985623]
[1734918809132,3.05228,3276.3,3275.1,3.0]
[1734918809319,1.4381,3277.0,3275.3,0.62507639]
[1734918809538,3.0526,3275.9,3275.2,1.3817]
[1734918810474,3.0,3276.3,3275.2,1.3817]
[1734918810635,3.0525,3276.0,3275.2,1.3817]
[1734918810822,4.48968,3277.0,3275.5,0.55]
[1734918811018,3.05196,3276.6,3275.6,0.19545]
[1734918811501,3.05196,3276.6,3275.7,1.4135]
[1734918811679,3.05205,3276.5,3275.7,1.4135]
[1734918811878,4.48968,3277.0,3275.7,1.4135]
[1734918811879,1.4381,3277.0,3275.7,1.4135]
[1734918812081,3.05205,3276.5,3275.7,1.4135]
[1734918812317,3.05213,3276.4,3275.8,0.160895]
[1734918812715,3.05199,3276.6,3275.8,0.160895]
[1734918812871,3.05166,3276.9,3275.8,0.160895]
[1734918813215,3.05213,3276.4,3275.8,0.160895]
[1734918813396,4.4381,3277.0,3275.7,1.4135]
[1734918813598,3.05244,3276.1,3275.7,1.4135]
[1734918813813,6.1035,3276.8,3275.1,1.4463]
[1734918814128,3.0,3276.5,3275.1,1.4463]
[1734918814426,3.05308,3275.4,3275.1,1.4463]
[1734918814568,3.0,3276.2,3275.1,1.4463]
[1734918814910,3.05292,3275.6,3275.1,1.4463]
[1734918815134,3.05264,3275.9,3275.1,1.4463]
[1734918815485,3.05282,3275.7,3275.1,1.4463]
[1734918816116,3.05288,3275.6,3275.1,1.4463]
[1734918816335,1.4024,3276.4,3275.1,1.4463]
[1734918816491,3.05292,3275.6,3275.1,1.005201]
[1734918816693,3.05306,3275.4,3275.1,1.005201]
[1734918816890,3.0,3276.2,3275.1,1.005201]
[1734918817134,3.05317,3275.3,3275.1,1.005201]
[1734918817499,3.053,3275.5,3275.1,1.005201]
[1734918817730,3.05307,3275.4,3275.1,1.005201]
[1734918818366,1.4024,3276.4,3275.1,1.005201]
[1734918818525,3.05317,3275.3,3275.1,1.005201]
[1734918819235,3.05294,3275.6,3275.1,1.005201]
[1734918819436,3.05243,3276.1,3275.1,1.005201]
[1734918819932,3.05289,3275.6,3275.1,1.005201]
[1734918820135,3.05243,3276.1,3275.1,1.005201]
[1734918820336,0.305243,3276.0,3275.1,1.005201]
[1734918820565,3.05288,3275.6,3275.1,1.005201]
[1734918821264,0.305243,3276.0,3275.1,1.005201]
[1734918821265,3.05263,3275.9,3275.1,1.005201]
[1734918822131,3.05278,3275.7,3275.1,1.005201]
[1734918822435,3.05287,3275.6,3275.1,1.005201]
[1734918822846,0.305243,3276.0,3275.1,1.005201]
[1734918823048,3.0525,3276.0,3275.1,1.005201]
[1734918823488,3.05228,3276.3,3275.3,1.5307]
[1734918823782,4.85456882,3277.3,3275.4,1.5307]
[1734918823935,4.85456882,3277.3,3275.7,1.389]
[1734918824294,3.05177,3276.8,3275.7,1.389]
[1734918824482,3.05138,3277.2,3275.7,1.389]
[1734918824784,3.05268,3275.8,3275.7,1.389]
[1734918825082,3.0,3276.2,3274.3,1.389]
[1734918825385,3.05337,3275.1,3274.9,1.24985623]
[1734918825594,3.44066882,3275.7,3274.9,1.24985623]
[1734918825756,3.44066882,3276.1,3275.0,1.389]
[1734918825936,3.0528,3275.7,3275.0,1.389]
[1734918826137,3.05343,3275.0,3274.9,1.24985623]
[1734918826587,3.05343,3275.0,3274.5,1.389]
[1734918826750,3.05301,3275.5,3274.5,1.389]
[1734918827349,3.05326,3275.2,3274.5,1.389]
[1734918827649,3.0529,3275.6,3274.5,1.389]
[1734918827867,3.0527,3275.8,3274.5,1.389]
[1734918827868,0.30529,3275.5,3274.5,1.389]
[1734918828284,3.05363,3274.8,3274.5,1.389]
[1734918828446,3.0538,3274.6,3274.5,1.389]
[1734918828790,1.4028,3275.2,3274.5,1.389]
[1734918828939,3.05353,3274.9,3274.5,1.389]
[1734918829138,1.4028,3275.2,3274.5,1.389]
[1734918829368,3.0538,3274.6,3274.5,1.389]
[1734918829570,3.05359,3274.9,3274.5,1.389]
[1734918830084,3.05373,3274.7,3274.5,1.389]
[1734918830919,3.445602,3275.1,3274.1,1.5318]
[1734918831129,3.05407,3274.4,3274.1,1.5318]
[1734918831629,3.44066882,3276.0,3274.1,1.5318]
[1734918831774,3.05334,3275.1,3274.1,1.5318]
[1734918832817,3.0,3275.9,3274.5,1.505]
[1734918833026,3.05289,3275.6,3274.5,1.505]
[1734918833226,0.3,3275.8,3274.5,1.505]
[1734918833227,3.05303,3275.5,3274.5,1.505]
[1734918833377,3.3,3275.8,3274.5,1.505]
[1734918833573,3.05328,3275.2,3274.5,1.505]
[1734918833801,3.3,3275.8,3274.5,1.505]
[1734918834121,3.44066882,3276.4,3274.5,1.505]
[1734918834122,3.05326,3275.2,3274.5,1.505]
[1734918834785,3.38278,3275.7,3274.5,1.505]
[1734918834989,3.05341,3275.1,3274.5,1.505]
[1734918836087,3.05346,3275.0,3274.5,1.505]
[1734918836619,3.33,3275.7,3274.5,1.505]
[1734918836914,3.05307,3275.4,3274.5,1.505]
[1734918837301,3.05315,3275.3,3274.5,1.505]
[1734918837473,3.05324,3275.2,3274.5,1.505]
[1734918837876,3.0,3275.7,3274.5,1.505]
[1734918838275,3.05364,3274.8,3274.5,1.505]
[1734918838621,3.05344,3275.0,3274.5,1.505]
[1734918839407,1.4765,3275.4,3274.1,1.4822]
[1734918839722,3.05472,3273.7,3273.5,1.484]
[1734918840232,3.05474,3273.6,3273.5,1.484]
[1734918840418,0.305474,3273.6,3273.4,1.24985623]
[1734918840622,3.05462,3273.8,3273.4,1.24985623]
[1734918840821,1.4292,3273.9,3273.4,1.24985623]
[1734918840976,3.0,3274.3,3273.5,1.5291]
[1734918840977,3.0541,3274.3,3273.5,1.5291]
[1734918841527,3.05429,3274.1,3273.5,1.5291]
[1734918842355,1.4363,3274.8,3273.5,1.5291]
[1734918842356,3.05393,3274.5,3273.5,1.5291]
[1734918842526,1.4363,3274.8,3273.5,1.5291]
[1734918842527,3.0546,3273.8,3273.5,1.5291]
[1734918842860,3.05446,3273.9,3272.9,1.4474]
[1734918843019,3.05429,3274.1,3272.9,1.4474]
[1734918843213,4.5229,3274.5,3272.9,1.4474]
[1734918843413,1.5229,3274.5,3273.0,0.2681174]
[1734918843613,3.05467,3273.7,3273.0,0.2681174]
[1734918844056,3.05467,3273.7,3272.9,1.4474]
[1734918844355,3.0,3274.3,3272.9,1.4474]
[1734918844556,3.05482,3273.6,3272.9,1.4474]
[1734918844718,3.0,3274.1,3272.9,1.4474]
[1734918844915,3.05436,3274.0,3272.9,1.4474]
[1734918845262,3.05464,3273.7,3272.9,1.4474]
[1734918845647,3.0,3274.1,3272.9,1.4474]
[1734918845648,3.05475,3273.6,3272.9,1.4474]
[1734918845815,3.0,3274.1,3272.9,1.4474]
[1734918846019,3.05495,3273.4,3272.9,1.4474]
[1734918846243,0.3,3274.0,3272.9,1.4474]
[1734918846415,4.53805,3273.8,3272.9,1.4474]
[1734918846621,3.05494,3273.4,3272.9,1.4474]
[1734918847364,1.4835,3274.2,3272.9,1.4474]
[1734918847666,1.4881,3274.6,3273.0,0.450285]
[1734918847836,3.05406,3274.4,3272.9,1.4474]
[1734918848165,3.05448,3273.9,3272.9,1.4474]
[1734918848452,3.05448,3273.9,3272.9,2.05337532]
[1734918848652,3.05448,3273.9,3272.9,5.05337532]
[1734918848815,3.05448,3273.9,3272.9,2.05337532]
[1734918849030,3.05448,3273.9,3273.0,0.20533753]
[1734918849662,3.05406,3274.4,3273.0,0.20533753]
[1734918849870,3.05424,3274.2,3273.0,0.20533753]
[1734918850073,3.05439,3274.0,3273.1,1.5116]
[1734918850751,3.0539,3274.5,3273.1,4.5668]
[1734918850930,3.05395,3274.5,3273.3,1.4205]
[1734918851131,3.0537,3274.8,3273.5,3.05479]
[1734918851439,3.0537,3274.8,3273.6,4.4523]
[1734918851641,3.0537,3274.8,3273.7,0.750709]
[1734918852148,1.4689,3275.0,3273.6,1.4523]
[1734918852346,3.05493,3273.4,3273.2,1.4523]
[1734918852558,3.05446,3273.9,3273.2,1.4523]
[1734918852739,3.05446,3273.9,3273.2,2.70215623]
[1734918852953,3.05422,3274.2,3273.2,2.70215623]
[1734918853151,3.05464,3273.8,3273.2,2.70215623]
[1734918854171,3.05464,3273.8,3273.2,1.4523]
[1734918854582,3.05467,3273.7,3273.2,1.4523]
[1734918855204,1.5085,3274.7,3273.2,1.4523]
[1734918855400,4.5623,3274.7,3273.2,1.4523]
[1734918855608,3.05414,3274.3,3273.3,0.44523]
[1734918856521,3.05429,3274.1,3273.3,0.44523]
[1734918856823,3.05446,3273.9,3273.2,1.4523]
[1734918857473,3.05478,3273.6,3273.2,1.4523]
[1734918857900,3.0,3274.5,3273.2,1.4523]
[1734918858203,3.05457,3273.8,3273.2,1.4523]
[1734918858610,3.05465,3273.7,3273.2,1.4523]
[1734918859520,3.05502,3273.3,3272.5,1.4337]
[1734918860688,3.05492,3273.4,3272.5,1.4337]
[1734918860864,3.05473,3273.7,3272.5,4.4337]
[1734918861068,3.05483,3273.5,3272.5,4.4337]
[1734918861310,3.05502,3273.3,3272.5,1.4337]
[1734918861517,3.05502,3273.3,3272.6,0.26775374]
[1734918862068,3.05436,3274.0,3272.6,0.26775374]
[1734918862269,1.5201,3274.0,3272.5,1.4337]
[1734918862509,3.55,3274.1,3272.5,1.4337]
[1734918862510,3.05561,3272.7,3272.5,1.4337]
[1734918863304,3.05522,3273.1,3272.1,1.4186]
[1734918863505,3.05587,3272.4,3272.1,1.4186]
[1734918863713,1.5201,3273.0,3271.7,1.4186]
[1734918863926,3.512922,3272.9,3271.7,1.4186]
[1734918864215,3.512922,3272.9,3271.6,1.24985623]
[1734918864216,3.05548,3272.8,3271.6,1.24985623]
[1734918864384,3.05651,3271.7,3271.6,1.24985623]
[1734918864586,3.05651,3271.7,3271.4,1.4186]
[1734918865132,3.05604,3272.3,3271.4,1.4186]
[1734918865422,3.05614,3272.1,3271.4,1.4186]
[1734918865786,3.05614,3272.1,3271.1,1.24985623]
[1734918865975,3.05661,3271.6,3271.1,1.24985623]
[1734918866174,0.305604,3272.2,3271.0,1.5001]
[1734918866402,4.57581,3272.6,3271.0,1.5001]
[1734918866403,3.05644,3271.8,3271.0,1.5001]
[1734918866572,3.0,3272.5,3271.0,1.5001]
[1734918866773,3.05662,3271.6,3271.0,1.5001]
[1734918866975,1.4648,3272.3,3271.0,1.5001]
[1734918867281,1.4648,3272.3,3270.3,1.24985623]
[1734918867282,1.4007,3271.7,3270.4,1.4699]
[1734918867488,3.05738,3270.8,3270.4,1.4699]
[1734918867676,3.05738,3270.8,3270.2,1.24985623]
[1734918868104,1.4007,3270.9,3270.2,1.24985623]
[1734918868309,3.05773,3270.4,3270.2,1.24985623]
[1734918868508,1.4007,3270.9,3270.2,1.24985623]
[1734918868720,1.4007,3271.3,3270.2,1.56232029]
[1734918869016,3.05681,3271.4,3270.3,1.4078]
[1734918869318,1.5079,3271.7,3270.5,3.05758]
[1734918869738,3.0,3272.1,3270.8,1.4078]
[1734918870441,3.05663,3271.6,3270.8,1.4078]
[1734918870814,3.05623,3272.0,3270.8,1.4078]
[1734918871020,3.0,3272.1,3270.8,1.4078]
[1734918871021,3.05657,3271.7,3270.8,1.4078]
[1734918871424,3.0,3272.1,3270.8,1.4078]
[1734918871638,3.05633,3271.9,3270.8,1.4078]
[1734918872314,4.94856882,3272.2,3270.8,1.4078]
[1734918872315,3.05612,3272.2,3270.8,1.4078]
[1734918872546,3.05614,3272.1,3270.8,1.4078]
[1734918873021,3.05588,3272.4,3270.9,0.55]
[1734918873226,3.05588,3272.4,3271.2,1.5197]
[1734918873427,3.05588,3272.4,3271.3,0.457675]
[1734918873624,3.0,3272.5,3271.3,0.457675]
[1734918873815,3.0,3272.5,3271.3,3.05684]
[1734918874159,3.05543,3272.9,3271.6,1.4524]
[1734918874361,3.05543,3272.9,3271.6,4.50898]
[1734918874654,3.05549,3272.8,3271.6,4.50898]
[1734918874806,3.05549,3272.8,3271.7,0.450898]
[1734918875007,4.4482,3273.2,3271.7,0.450898]
[1734918875251,4.4482,3273.2,3271.6,1.4524]
[1734918875252,3.0555,3272.8,3271.6,1.4524]
[1734918877126,3.0,3273.1,3271.6,4.50896]
[1734918877127,6.05526,3273.1,3271.6,4.50896]
[1734918877342,1.393,3273.2,3271.6,4.50896]
[1734918877527,4.393,3273.2,3271.6,1.4524]
[1734918877867,3.05599,3272.3,3271.6,1.4524]
[1734918878063,3.05571,3272.6,3271.6,1.4524]
[1734918878565,3.0553,3273.0,3271.6,1.4524]
[1734918878866,3.05591,3272.4,3271.6,1.4524]
[1734918879028,3.05598,3272.3,3271.3,1.5281]
[1734918879237,3.501548,3272.3,3271.3,1.5281]
[1734918879986,3.05623,3272.0,3271.3,1.5281]
[1734918881569,3.05605,3272.2,3271.3,1.5281]
[1734918882880,3.05614,3272.1,3271.3,1.5281]
[1734918883169,3.05625,3272.0,3271.3,1.5281]
[1734918884244,4.392,3272.9,3271.3,1.5281]
[1734918884433,6.05567,3272.6,3271.3,4.58494]
[1734918884767,3.05587,3272.4,3271.3,1.5281]
[1734918885478,4.392,3272.9,3271.3,1.5281]
[1734918885828,3.05601,3272.3,3271.3,1.5281]
[1734918886775,6.05576,3272.6,3271.3,1.5281]
[1734918887000,3.05576,3272.6,3271.5,1.4497]
[1734918890571,3.05511,3273.2,3271.8,3.05636]
[1734918890807,3.05427,3274.1,3272.8,3.05541]
[1734918891008,4.96513288,3274.2,3273.1,1.5067]
[1734918891211,4.96513288,3274.2,3273.1,4.5619]
[1734918891498,3.05398,3274.5,3273.2,4.5067]
[1734918891708,1.4313,3274.6,3273.2,1.5067]
[1734918891912,0.25,3276.1,3272.9,11.98]
[1734918891913,1.4313,3275.2,3273.6,4.5067]
[1734918892092,3.05395,3274.5,3273.6,1.5067]
[1734918893149,1.4313,3275.2,3273.7,1.4264]
[1734918893270,3.05301,3275.5,3274.2,3.05416]
[1734918893471,3.05301,3275.5,3274.3,1.4264]
[1734918893692,1.5159,3275.6,3274.3,1.4264]
[1734918893693,3.509951,3275.4,3274.3,1.4264]
[1734918895562,0.456891,3275.4,3274.3,1.4264]
[1734918895763,3.05307,3275.4,3274.3,1.4264]
[1734918895968,3.0538,3274.6,3274.3,1.4264]
[1734918896608,3.05399,3274.4,3274.3,1.4264]
[1734918896766,1.4038,3275.2,3274.3,1.4264]
[1734918896975,1.5223,3275.5,3274.3,1.4264]
[1734918897425,3.05374,3274.7,3274.3,1.4264]
[1734918897609,3.0539,3274.5,3274.3,1.4264]
[1734918898527,0.55,3275.3,3273.8,1.3884]
[1734918898672,3.05403,3274.4,3273.8,1.3884]
[1734918899505,3.05407,3274.4,3273.8,1.3884]
[1734918900417,3.05378,3274.7,3273.8,1.3884]
[1734918900628,3.05381,3274.6,3273.8,1.3884]
[1734918900922,0.355,3275.2,3273.8,1.3884]
[1734918900923,3.0539,3274.5,3273.8,1.3884]
[1734918901316,3.05343,3275.0,3273.8,1.3884]
[1734918901623,3.05384,3274.6,3273.8,1.3884]
[1734918901827,0.305343,3274.9,3273.8,1.3884]
[1734918902041,3.05376,3274.7,3273.8,1.3884]
[1734918902418,3.05334,3275.1,3273.8,1.3884]
[1734918902746,3.05446,3273.9,3273.8,1.3884]
[1734918902928,1.3942,3274.3,3273.3,1.4039]
[1734918903241,3.05492,3273.5,3273.3,1.4039]
[1734918903555,3.05492,3273.4,3273.3,1.4039]
[1734918903699,3.05464,3273.7,3272.4,1.4097]
[1734918904027,0.305463,3273.7,3272.4,2.3186053]
[1734918904210,3.05576,3272.5,3272.4,1.4097]
[1734918904411,1.499,3273.6,3272.0,2.63669648]
[1734918904412,3.05597,3272.3,3272.0,2.63669648]
[1734918904616,3.55,3273.4,3272.0,1.3815]
[1734918904801,3.05485,3273.5,3272.3,3.44066882]
[1734918905004,3.05463,3273.8,3272.4,1.3815]
[1734918905331,3.05463,3273.8,3272.7,3.44066882]
[1734918905496,3.0,3274.1,3272.8,1.512]
[1734918905923,3.05446,3273.9,3272.8,1.512]
[1734918906586,1.4661,3274.4,3272.9,1.883455]
[1734918906587,3.05465,3273.7,3272.9,1.883455]
[1734918907394,6.05439,3274.0,3272.9,1.4267]
[1734918907541,1.4499,3273.6,3272.9,1.4267]
[1734918907745,3.05483,3273.5,3272.1,1.521]
[1734918907948,1.4499,3273.6,3272.1,1.521]
[1734918908160,3.05547,3272.9,3272.1,1.521]
[1734918908462,1.4499,3273.6,3272.2,0.21242585]
[1734918908790,3.05549,3272.8,3272.1,1.521]
[1734918909093,3.05483,3273.5,3272.1,1.521]
[1734918909263,3.05568,3272.6,3272.1,1.521]
[1734918910360,1.4499,3273.6,3272.1,1.521]
[1734918910753,3.05564,3272.7,3272.1,1.521]
[1734918911297,3.05521,3273.1,3272.1,1.521]
[1734918911298,3.0557,3272.6,3272.1,1.521]
[1734918912315,3.05539,3273.0,3272.1,1.521]
[1734918912613,3.05555,3272.8,3272.1,1.521]
[1734918913338,3.05604,3272.2,3272.1,1.521]
[1734918913609,3.05642,3271.8,3271.7,1.4388]
[1734918914479,3.0,3272.7,3271.2,1.4388]
[1734918914683,3.05663,3271.6,3271.2,1.4388]
[1734918914884,3.05663,3271.6,3271.2,4.4388]
[1734918915571,3.05644,3271.8,3271.2,1.4388]
[1734918915768,0.305644,3271.8,3271.2,1.4388]
[1734918915972,3.05632,3271.9,3270.8,1.4388]
[1734918916169,3.05726,3270.9,3270.8,1.4388]
[1734918916516,3.05686,3271.4,3270.8,1.4388]
[1734918916714,3.05709,3271.1,3270.8,1.4388]
[1734918917021,3.05719,3271.0,3270.8,1.4388]
[1734918917319,5.51899311,3272.0,3270.3,1.4388]
[1734918917608,3.05745,3270.7,3270.3,1.4388]
[1734918917771,3.05754,3270.6,3270.3,1.4388]
[1734918918171,3.05734,3270.9,3270.3,1.4388]
[1734918919005,3.05701,3271.2,3270.3,1.4388]
[1734918919309,3.05681,3271.4,3270.3,1.4388]
[1734918919507,3.60827931,3271.9,3270.3,1.4388]
[1734918919508,0.55189931,3271.9,3270.5,1.4388]
[1734918919666,3.0,3272.0,3270.5,1.4388]
[1734918919871,4.51172,3272.3,3270.7,3.0]
[1734918920069,4.51172,3272.3,3270.7,1.4388]
[1734918920070,3.05604,3272.2,3270.7,1.4388]
[1734918920310,3.05632,3272.0,3270.9,1.4388]
[1734918920489,3.05632,3272.0,3271.1,1.4388]
[1734918920671,3.05632,3272.0,3271.3,1.4388]
[1734918922019,3.05606,3272.2,3271.3,1.4388]
[1734918922228,1.4557,3273.1,3271.4,1.4388]
[1734918922369,1.4557,3273.5,3271.8,3.0]
[1734918922574,0.48963688,3273.4,3272.0,1.4388]
[1734918923221,3.05469,3273.7,3272.5,1.4388]
[1734918923397,3.05469,3273.7,3272.6,4.4388]
[1734918923572,3.05446,3273.9,3272.6,1.4388]
[1734918923910,3.05558,3272.7,3272.6,1.4388]
[1734918924213,3.05522,3273.1,3271.9,1.4388]
[1734918924414,0.305522,3273.0,3271.9,1.4388]
[1734918924796,3.0,3273.3,3271.9,1.4388]
[1734918925114,3.0555,3272.8,3271.9,1.4388]
[1734918925316,3.0,3273.3,3271.9,1.4388]
[1734918925477,3.05535,3273.0,3271.9,1.4388]
[1734918925812,3.0,3273.3,3271.9,1.4388]
[1734918925981,3.05519,3273.2,3272.1,1.4388]
[1734918926181,3.0,3273.6,3272.1,1.4388]
[1734918926502,3.05538,3273.0,3272.1,1.4388]
[1734918927577,3.05539,3272.9,3272.1,1.4388]
[1734918928731,3.0,3273.7,3272.1,1.4388]
[1734918928948,3.05515,3273.2,3272.2,0.2188321]
[1734918929243,3.05522,3273.1,3272.2,0.2188321]
[1734918929542,3.05501,3273.4,3272.3,1.4202]
[1734918929700,3.05501,3273.4,3272.4,1.4202]
[1734918930613,1.4557,3273.8,3272.4,1.4202]
[1734918930932,1.4704,3273.1,3271.6,1.468]
[1734918931249,3.05572,3272.6,3271.6,1.468]
[1734918931549,3.0552,3273.2,3271.8,3.05641]
[1734918931853,3.0554,3272.9,3271.9,1.468]
[1734918932036,3.0554,3272.9,3271.9,1.737694]
[1734918932201,3.05617,3272.1,3271.9,1.737694]
[1734918932408,0.04575929,3272.0,3271.9,1.737694]
[1734918932624,3.05617,3272.1,3271.9,1.468]
[1734918932825,0.03842134,3272.0,3271.6,1.5023]
[1734918933210,3.05543,3272.9,3271.6,1.5023]
[1734918933402,0.03854266,3272.8,3271.9,1.5023]
[1734918933603,3.05531,3273.0,3271.9,1.5023]
[1734918933800,0.03684106,3272.9,3271.9,1.5023]
[1734918934005,3.05546,3272.9,3271.9,1.5023]
[1734918934205,0.03685036,3272.8,3271.9,1.5023]
[1734918934462,3.05522,3273.1,3272.0,1.5023]
[1734918934753,8.00966882,3273.6,3272.0,1.5023]
[1734918934754,3.05542,3272.9,3272.0,2.258167]
[1734918934930,0.03692534,3272.8,3272.0,1.5023]
[1734918935311,0.03692534,3272.8,3272.1,0.59748706]
[1734918935715,3.05542,3272.9,3272.1,0.59748706]
[1734918936123,0.03700031,3272.8,3272.1,0.59748706]
[1734918936402,3.05542,3272.9,3272.1,0.59748706]
[1734918936606,3.05542,3272.9,3272.1,0.80746577]
[1734918936607,0.03701905,3272.8,3272.1,0.80746577]
[1734918936841,3.05542,3272.9,3272.1,0.80746577]
[1734918937256,0.03701685,3272.8,3272.1,0.80746577]
[1734918937855,3.05542,3272.9,3272.1,0.80746577]
[1734918938270,0.03702529,3272.8,3272.1,0.80746577]
[1734918938552,0.03702529,3272.8,3272.2,0.23097658]
[1734918939559,3.05569,3272.6,3272.0,1.5023]
[1734918939758,3.05578,3272.5,3272.0,1.5023]
[1734918940059,3.05596,3272.3,3272.0,1.5023]
[1734918940463,0.03704813,3272.2,3272.0,1.5023]
[1734918940763,3.05596,3272.3,3272.0,1.5023]
[1734918941056,0.03704813,3272.2,3272.0,1.5023]
[1734918941559,3.05525,3273.1,3272.0,1.5023]
[1734918941761,3.05525,3273.1,3272.1,0.45023]
[1734918941959,0.03693849,3273.0,3272.2,1.4184]
[1734918942187,0.03693849,3273.0,3272.4,3.0]
[1734918942471,1.5021,3274.3,3272.8,1.4184]
[1734918942928,3.05539,3272.9,3272.8,1.4184]
[1734918943134,0.03719199,3272.9,3272.8,1.4184]
[1734918943332,3.05494,3273.4,3272.8,1.4184]
[1734918943561,1.521,3274.1,3272.8,1.4184]
[1734918943777,3.05512,3273.2,3272.8,1.4184]
[1734918944132,0.0371967,3273.1,3272.8,1.4184]
[1734918946420,3.05448,3273.9,3272.8,1.4184]
[1734918946764,0.03723091,3273.8,3272.9,4.4499]
[1734918946928,3.09180091,3273.8,3273.0,0.74499]